bitfinex/quotes_SOLUSD_20251103
["timestamp","ask_amount","ask_price","bid_price","bid_amount"]
[1762209064885,0.7,164.89,164.8,15.88990291]
[1762209065110,0.7,164.89,164.81,0.72]
[1762209065619,6.06317831,164.93,164.83,21.23399866]
[1762209065819,6.06317831,164.93,164.84,0.86216157]
[1762209065820,0.7,164.92,164.84,0.86216157]
[1762209066422,7.87773044,164.88,164.83,6.06685676]
[1762209066593,0.7,164.92,164.83,6.06685676]
[1762209066594,7.87773044,164.89,164.83,6.06685676]
[1762209066799,8.57773044,164.89,164.83,6.06685676]
[1762209067007,8.57773044,164.88,164.78,7.87773044]
[1762209067209,0.7,164.87,164.8,0.14216157]
[1762209067739,7.87773044,164.89,164.81,6.06759298]
[1762209067905,0.7,164.91,164.82,0.14216157]
[1762209068099,0.7,164.91,164.81,21.23657544]
[1762209068100,7.87773044,164.89,164.81,21.23657544]
[1762209068299,0.7,164.93,164.83,0.14216157]
[1762209068521,8.57773044,164.98,164.85,0.14216157]
[1762209068703,8.57773044,164.98,164.86,0.72]
[1762209068909,0.7,164.97,164.87,0.14216157]
[1762209069313,0.7,164.97,164.88,0.72]
[1762209069839,6.76195436,164.97,164.89,6.06464916]
[1762209070134,14.6396848,164.97,164.89,6.06464916]
[1762209070304,0.7,164.96,164.89,6.06464916]
[1762209071203,0.7,164.99,164.9,0.72]
[1762209071415,0.7,164.98,164.9,0.72]
[1762209071802,0.7,164.98,164.88,6.0647499]
[1762209072029,0.7,164.98,164.9,0.72]
[1762209072230,8.57773044,164.98,164.9,0.72]
[1762209072430,7.87773044,164.96,164.88,6.0647499]
[1762209072628,21.292,164.97,164.85,18.9454488]
[1762209072938,21.292,164.97,164.89,5.0]
[1762209072939,7.87773044,164.93,164.89,5.0]
[1762209073124,7.87773044,164.92,164.89,5.0]
[1762209073319,8.57773044,164.91,164.89,5.0]
[1762209073719,7.87773044,164.94,164.89,5.0]
[1762209074230,0.7,164.94,164.89,5.72]
[1762209074426,3.96028274,164.96,164.89,5.72]
[1762209074623,18.60023275,164.96,164.89,11.78460439]
[1762209074820,0.7,164.95,164.89,11.78460439]
[1762209075516,4.66866008,164.95,164.89,11.78460439]
[1762209075716,6.76252526,164.95,164.89,11.78460439]
[1762209075917,10.73118534,164.95,164.89,5.72]
[1762209076122,3.96866008,164.94,164.89,11.78456456]
[1762209076433,6.76252526,164.95,164.89,11.78456456]
[1762209076630,3.97624096,164.94,164.89,11.78456456]
[1762209076828,6.76252526,164.95,164.89,11.78456456]
[1762209077123,3.97624017,164.94,164.89,11.78456456]
[1762209077333,3.97624017,164.93,164.89,11.78456456]
[1762209077637,6.76252526,164.95,164.89,11.78456456]
[1762209077822,3.9820485,164.94,164.89,11.78456456]
[1762209078213,3.9820485,164.93,164.9,0.72]
[1762209078426,3.98792631,164.92,164.9,0.72]
[1762209078624,5.57532733,164.96,164.9,0.72]
[1762209078805,3.9879543,164.95,164.9,0.72]
[1762209079005,3.9879543,164.94,164.9,0.72]
[1762209079212,3.9879543,164.93,164.9,0.72]
[1762209079416,3.9879543,164.92,164.9,0.72]
[1762209079617,3.9879543,164.91,164.9,0.72]
[1762209080131,4.87532733,164.95,164.9,22.0871464]
[1762209080341,3.99460543,164.94,164.9,22.0871464]
[1762209080638,3.99460543,164.93,164.91,0.72]
[1762209080931,3.99460543,164.93,164.89,5.0]
[1762209080932,3.99460543,164.92,164.89,5.0]
[1762209081107,0.7,164.94,164.89,5.0]
[1762209081108,3.99460543,164.91,164.89,5.0]
[1762209081312,3.99460543,164.9,164.89,11.06462435]
[1762209081622,3.99460543,164.9,164.89,5.0]
[1762209082025,4.69460543,164.9,164.89,5.0]
[1762209082222,3.99460543,164.9,164.89,5.0]
[1762209082425,18.63661725,164.9,164.89,5.0]
[1762209083011,3.99460543,164.9,164.89,5.0]
[1762209084546,8.86993276,164.9,164.89,5.0]
[1762209085535,3.99460543,164.9,164.89,5.0]
[1762209086139,3.99460543,164.9,164.89,11.78464916]
[1762209086821,3.99460543,164.9,164.89,11.06464916]
[1762209087036,3.99460543,164.9,164.89,11.78464916]
[1762209088144,3.17021972,164.98,164.89,11.78464916]
[1762209088145,5.55532733,165.0,164.93,0.14216157]
[1762209088326,4.87532733,165.02,164.93,0.85216157]
[1762209088529,4.87532733,165.04,164.93,0.85216157]
[1762209088744,12.75305777,165.04,164.93,0.85216157]
[1762209088929,12.75305777,165.03,164.93,0.85216157]
[1762209089271,6.06060606,165.0,164.93,6.91508216]
[1762209089558,13.93807796,165.01,164.93,6.91508216]
[1762209089754,14.61807796,165.01,164.93,22.07302795]
[1762209090158,0.68,165.0,164.93,6.91508216]
[1762209090330,8.55773044,165.0,164.93,6.91508216]
[1762209090520,8.55773044,165.0,164.92,20.592]
[1762209090521,0.68,165.0,164.92,20.592]
[1762209090725,7.87773044,164.95,164.91,6.06359715]
[1762209090945,9.78882769,164.94,164.89,11.77459217]
[1762209091146,9.78882769,164.94,164.9,0.71]
[1762209091344,9.78882769,164.94,164.91,6.06391364]
[1762209091845,40.29506292,165.26,164.9,0.71]
[1762209091846,9.78882769,164.92,164.9,0.71]
[1762209092223,9.78882769,164.93,164.9,0.71]
[1762209092921,9.78882769,164.93,164.89,5.0]
[1762209093117,9.78882769,164.93,164.89,5.7]
[1762209093343,9.78882769,164.93,164.9,6.06427224]
[1762209093647,9.78882769,164.93,164.89,5.7]
[1762209093648,17.66655813,164.93,164.89,5.7]
[1762209093946,9.78882769,164.9,164.89,5.0]
[1762209094446,9.78882769,164.92,164.89,5.0]
[1762209094621,17.66655813,164.92,164.89,5.0]
[1762209094824,9.78882769,164.9,164.89,5.0]
[1762209095541,9.78882769,164.92,164.89,11.06463308]
[1762209095743,10.45882769,164.92,164.89,11.06463308]
[1762209095958,10.45882769,164.92,164.89,5.0]
[1762209096264,9.78882769,164.9,164.89,5.0]
[1762209096778,18.33655813,164.9,164.89,5.0]
[1762209097640,24.40083951,164.9,164.89,5.0]
[1762209097837,24.40083951,164.9,164.79,0.7]
[1762209098044,17.66655813,164.81,164.75,0.7]
[1762209098351,9.78882769,164.79,164.75,0.7]
[1762209098543,18.33655813,164.79,164.73,24.63735097]
[1762209098742,18.33655813,164.79,164.74,0.14216157]
[1762209099053,9.78882769,164.77,164.73,6.7705351]
[1762209099266,7.87773044,164.76,164.7,0.7]
[1762209099438,7.87773044,164.72,164.59,0.21324235]
[1762209099644,8.25930874,164.79,164.68,21.9533297]
[1762209099837,9.78882769,164.8,164.72,0.14216157]
[1762209100045,17.66655813,164.8,164.72,0.14216157]
[1762209100254,9.78882769,164.78,164.71,21.292]
[1762209100455,9.78882769,164.78,164.72,0.7]
[1762209100652,9.78882769,164.82,164.73,0.14216157]
[1762209101064,17.66655813,164.83,164.75,0.14216157]
[1762209101239,9.78882769,164.8,164.74,0.7]
[1762209101638,9.78882769,164.8,164.75,6.06980273]
[1762209101846,20.592,164.83,164.74,0.7]
[1762209102065,9.78882769,164.81,164.74,0.7]
[1762209102362,7.87773044,164.86,164.75,0.14216157]
[1762209102551,17.66655813,164.83,164.75,0.14216157]
[1762209102861,9.78882769,164.81,164.75,0.14216157]
[1762209103046,18.33655813,164.81,164.74,0.7]
[1762209103246,17.66655813,164.79,164.7,15.17825144]
[1762209103453,17.66655813,164.79,164.71,0.84216157]
[1762209103662,24.40497364,164.79,164.73,6.21246722]
[1762209103865,16.5272432,164.79,164.73,6.21246722]
[1762209104042,10.45882769,164.79,164.73,6.21246722]
[1762209104237,16.52717732,164.79,164.73,6.21246722]
[1762209104962,10.45882769,164.79,164.73,6.91246722]
[1762209106250,16.52719636,164.79,164.73,6.91246722]
[1762209106967,10.45882769,164.79,164.73,6.91246722]
[1762209107154,16.52719656,164.79,164.73,22.08881639]
[1762209107667,10.45882769,164.79,164.73,22.08881639]
[1762209107846,9.78882769,164.82,164.75,0.14216157]
[1762209108046,9.78882769,164.82,164.77,0.14216157]
[1762209108346,9.78882769,164.83,164.78,6.76856249]
[1762209108568,9.78882769,164.83,164.78,21.94030663]
[1762209108771,0.67,164.85,164.78,21.94030663]
[1762209109077,9.78882769,164.83,164.77,0.14216157]
[1762209109378,9.78882769,164.81,164.74,26.66207986]
[1762209109570,14.9014805,164.81,164.74,21.9455078]
[1762209110071,14.9014805,164.81,164.75,0.7]
[1762209110371,14.9014805,164.81,164.76,6.06943432]
[1762209110544,9.78882769,164.81,164.76,6.06943432]
[1762209110865,9.78882769,164.79,164.73,6.0705132]
[1762209111067,9.78882769,164.79,164.74,0.7]
[1762209111966,0.67,164.84,164.77,0.14216157]
[1762209112154,10.45882769,164.87,164.77,0.14216157]
[1762209112466,9.78882769,164.85,164.79,21.38131442]
[1762209112771,0.67,164.86,164.79,21.38131442]
[1762209113080,0.67,164.85,164.78,6.06868138]
[1762209113370,5.78265281,164.85,164.77,6.06901394]
[1762209113570,9.78882769,164.82,164.75,0.7]
[1762209113756,9.78882769,164.82,164.75,6.76971851]
[1762209114064,0.67,164.82,164.75,6.76971851]
[1762209114474,6.73722577,164.82,164.75,21.94422533]
[1762209114653,9.78882769,164.81,164.75,6.76971851]
[1762209114853,9.78882769,164.81,164.76,0.7]
[1762209115452,9.78882769,164.83,164.76,0.7]
[1762209115656,10.45882769,164.83,164.76,0.7]
[1762209116357,10.45882769,164.83,164.77,21.24173089]
[1762209116874,16.52576188,164.83,164.77,21.24173089]
[1762209117256,10.45882769,164.83,164.77,21.24173089]
[1762209117847,20.592,164.87,164.78,0.14216157]
[1762209118043,14.9014805,164.85,164.78,0.84216157]
[1762209118477,16.52512689,164.85,164.79,6.06832938]
[1762209118663,10.45882769,164.85,164.79,6.06832938]
[1762209119257,10.45882769,164.85,164.79,21.23915285]
[1762209119579,3.17231147,164.88,164.8,0.84216157]
[1762209119747,9.78882769,164.87,164.8,0.84216157]
[1762209120269,10.45882769,164.87,164.8,0.84216157]
[1762209120462,10.45882769,164.87,164.81,21.23657544]
[1762209121072,10.45882769,164.87,164.81,21.93657544]
[1762209121275,10.45882769,164.87,164.71,13.14]
[1762209121276,5.11265281,164.82,164.75,6.76977999]
[1762209121473,9.78882769,164.79,164.75,6.76977999]
[1762209121780,14.9014805,164.79,164.72,0.7]
[1762209121966,9.78882769,164.81,164.75,0.7]
[1762209122166,9.78882769,164.81,164.76,0.14216157]
[1762209122363,3.88160932,164.92,164.76,0.14216157]
[1762209122568,0.71,164.95,164.78,0.14216157]
[1762209122875,31.87768119,164.96,164.81,0.14216157]
[1762209122876,0.71,164.96,164.81,0.14216157]
[1762209123179,0.71,164.95,164.83,0.14216157]
[1762209123473,5.11265281,164.9,164.8,20.592]
[1762209123674,0.71,164.95,164.81,0.72]
[1762209123885,5.11265281,164.91,164.82,0.14216157]
[1762209124192,5.11265281,164.9,164.82,0.14216157]
[1762209124355,5.11265281,164.9,164.84,0.14216157]
[1762209124555,20.592,164.94,164.83,0.72]
[1762209124556,0.71,164.91,164.85,6.06612071]
[1762209124754,8.0460899,164.98,164.86,0.14216157]
[1762209124755,5.11265281,164.96,164.86,0.14216157]
[1762209124978,5.11265281,164.96,164.87,0.72]
[1762209124979,0.71,164.95,164.87,0.72]
[1762209125975,0.71,164.95,164.85,6.06612071]
[1762209125976,5.11265281,164.91,164.85,6.06612071]
[1762209126186,5.11265281,164.91,164.83,35.90108261]
[1762209126187,5.11265281,164.89,164.84,6.0664164]
[1762209126484,5.11265281,164.89,164.84,0.72]
[1762209126683,5.11265281,164.89,164.85,0.72]
[1762209126982,11.17721801,164.9,164.85,0.72]
[1762209127183,0.71,164.89,164.83,0.72]
[1762209128160,3.17076257,164.98,164.84,0.14216157]
[1762209128358,0.71,164.97,164.88,0.14216157]
[1762209128593,5.11265281,164.95,164.87,20.592]
[1762209128780,5.11265281,164.95,164.85,0.72]
[1762209128781,5.11265281,164.95,164.88,6.06498593]
[1762209129077,5.11265281,164.95,164.88,21.22752838]
[1762209129078,0.71,164.94,164.88,21.22752838]
[1762209129786,5.11265281,164.92,164.86,6.06570995]
[1762209130286,5.82265281,164.92,164.86,6.06570995]
[1762209130583,11.88647506,164.92,164.86,6.06570995]
[1762209130768,11.17647506,164.92,164.86,6.06570995]
[1762209130970,0.71,164.91,164.86,6.06570995]
[1762209131987,0.71,164.91,164.84,0.14216157]
[1762209132186,0.71,164.91,164.84,15.30838336]
[1762209132372,0.71,164.91,164.84,16.02838336]
[1762209132561,0.71,164.94,164.86,0.14216157]
[1762209132761,5.11265281,164.93,164.86,0.14216157]
[1762209133085,5.11265281,164.91,164.84,6.06648871]
[1762209133278,5.11265281,164.9,164.84,6.06648871]
[1762209133698,5.82265281,164.9,164.84,6.06648871]
[1762209134493,11.17705124,164.9,164.84,6.06648871]
[1762209134682,0.71,164.89,164.84,6.06648871]
[1762209134993,5.11265281,164.87,164.8,0.72]
[1762209135195,5.11265281,164.88,164.79,20.592]
[1762209135378,5.11265281,164.88,164.81,0.72]
[1762209135694,5.82265281,164.88,164.81,0.72]
[1762209135875,0.71,164.88,164.82,0.14216157]
[1762209136392,11.17658562,164.91,164.82,0.86216157]
[1762209136597,0.71,164.91,164.83,21.23399866]
[1762209136894,0.71,164.9,164.83,21.23399866]
[1762209137200,5.11265281,164.89,164.8,6.06796116]
[1762209137395,6.0640142,164.91,164.8,6.06796116]
[1762209137396,5.11265281,164.87,164.8,6.06796116]
[1762209137581,5.11265281,164.87,164.8,6.78796116]
[1762209137783,5.11265281,164.87,164.81,0.72]
[1762209137982,0.71,164.88,164.81,0.72]
[1762209138192,5.11265281,164.87,164.81,0.72]
[1762209138590,5.11265281,164.86,164.82,6.06722485]
[1762209138788,5.11265281,164.86,164.82,6.78722485]
[1762209139390,5.11265281,164.84,164.77,6.06895644]
[1762209139609,5.11265281,164.81,164.74,0.72]
[1762209139777,5.11265281,164.78,164.71,0.72]
[1762209140105,5.11265281,164.78,164.64,21.25850339]
[1762209140408,6.86073346,164.81,164.66,0.72]
[1762209140588,0.71,164.79,164.71,20.592]
[1762209140783,5.11265281,164.83,164.71,20.592]
[1762209140784,0.71,164.83,164.71,20.592]
[1762209140978,4.87532733,164.88,164.73,0.14216157]
[1762209140979,5.82265281,164.82,164.73,0.14216157]
[1762209141186,5.82265281,164.81,164.73,0.14216157]
[1762209141385,0.71,164.81,164.68,51.61525381]
[1762209141593,0.71,164.8,164.73,0.72]
[1762209142195,5.82265281,164.8,164.73,0.72]
[1762209142395,0.71,164.8,164.74,6.07017117]
[1762209142918,0.71,164.79,164.74,6.07017117]
[1762209143106,9.78882769,164.78,164.74,21.24559911]
[1762209144001,0.71,164.78,164.74,21.24559911]
[1762209144686,0.71,164.78,164.74,6.07017117]
[1762209144890,9.78882769,164.75,164.7,15.89901185]
[1762209145386,9.78882769,164.75,164.71,0.72]
[1762209145782,9.78882769,164.73,164.69,6.07201408]
[1762209146007,0.71,164.74,164.61,21.26237773]
[1762209146183,0.71,164.74,164.65,0.72]
[1762209146184,9.78882769,164.69,164.65,0.72]
[1762209146377,9.78882769,164.69,164.61,21.4045393]
[1762209146605,10.49882769,164.69,164.63,21.25979468]
[1762209146821,15.6114805,164.69,164.63,21.25979468]
[1762209147105,15.6114805,164.69,164.63,21.97979468]
[1762209147303,9.78882769,164.67,164.63,6.07422705]
[1762209147489,9.78882769,164.67,164.57,6.07644163]
[1762209147490,14.9014805,164.64,164.57,6.07644163]
[1762209147693,9.78882769,164.6,164.56,0.1]
[1762209147900,9.78882769,164.58,164.56,0.1]
[1762209148593,9.78882769,164.57,164.56,0.1]
[1762209149183,9.78882769,164.57,164.56,6.17681088]
[1762209149385,9.78882769,164.57,164.56,0.1]
[1762209149603,9.78882769,164.57,164.56,6.17681088]
[1762209149808,0.14216157,164.69,164.56,22.0788381]
[1762209149809,0.67,164.66,164.56,22.0788381]
[1762209149993,9.78882769,164.65,164.58,0.14216157]
[1762209150194,9.78882769,164.58,164.56,0.1]
[1762209150401,9.78882769,164.58,164.55,0.1]
[1762209150402,9.78882769,164.56,164.55,0.1]
[1762209150601,14.9014805,164.56,164.55,0.1]
[1762209150804,10.45882769,164.56,164.55,0.1]
[1762209150995,15.5714805,164.56,164.55,0.1]
[1762209151202,15.5714805,164.56,164.44,15.91246952]
[1762209151498,9.78882769,164.52,164.45,21.99276461]
[1762209151706,0.67,164.51,164.45,6.0805755]
[1762209152293,9.78882769,164.5,164.42,0.71]
[1762209152494,9.78882769,164.5,164.43,0.7]
[1762209152809,9.78882769,164.5,164.43,6.78133127]
[1762209153390,9.78882769,164.5,164.43,21.98536946]
[1762209153587,5.11265281,164.5,164.36,6.0842054]
[1762209153913,9.78882769,164.48,164.41,0.7]
[1762209154407,0.69,164.51,164.42,0.14216157]
[1762209154594,0.69,164.51,164.43,0.7]
[1762209154788,0.69,164.51,164.44,21.28435902]
[1762209155596,25.81533011,164.66,164.45,21.43416157]
[1762209155825,5.80265281,164.56,164.47,20.592]
[1762209155993,9.78882769,164.55,164.47,20.592]
[1762209156188,10.47882769,164.55,164.48,0.7]
[1762209156621,9.78882769,164.53,164.45,0.84216157]
[1762209156928,9.78882769,164.53,164.46,21.28177063]
[1762209157102,9.78882769,164.51,164.46,6.08050589]
[1762209157512,9.78882769,164.51,164.46,21.98177063]
[1762209158723,0.69,164.5,164.44,6.08104171]
[1762209159096,5.80265281,164.5,164.44,6.08104171]
[1762209159301,9.78882769,164.51,164.44,21.9841553]
[1762209159504,10.47882769,164.51,164.44,21.9841553]
[1762209159813,0.69,164.51,164.45,0.7]
[1762209160316,5.11265281,164.53,164.45,0.7]
[1762209160506,9.78882769,164.51,164.45,0.7]
[1762209160818,9.78882769,164.51,164.46,21.28177063]
[1762209161200,10.47882769,164.51,164.46,21.28177063]
[1762209161729,0.69,164.55,164.47,0.7]
[1762209162022,5.80265281,164.55,164.47,0.7]
[1762209162236,0.69,164.58,164.47,0.7]
[1762209162528,0.14216157,164.63,164.49,20.592]
[1762209162529,0.69,164.61,164.49,20.592]
[1762209162695,0.69,164.61,164.52,21.27400923]
[1762209163116,0.69,164.61,164.52,21.97400923]
[1762209163417,0.69,164.61,164.53,0.7]
[1762209163720,0.69,164.61,164.52,21.97400923]
[1762209164112,11.87764706,164.61,164.52,21.97400923]
[1762209164308,21.95240692,164.61,164.49,20.592]
[1762209164612,5.11265281,164.56,164.49,0.7]
[1762209164924,0.69,164.62,164.51,0.14216157]
[1762209165134,0.69,164.62,164.53,0.14216157]
[1762209165334,5.11265281,164.61,164.52,0.7]
[1762209165503,5.80265281,164.62,164.52,0.7]
[1762209165698,0.69,164.61,164.52,0.7]
[1762209165911,5.80265281,164.61,164.52,0.7]
[1762209166121,5.11265281,164.6,164.52,0.7]
[1762209166319,5.80265281,164.6,164.52,0.7]
[1762209166822,0.69,164.6,164.53,21.27271622]
[1762209167309,11.87803934,164.6,164.53,21.27271622]
[1762209167496,5.11265281,164.59,164.53,6.07791892]
[1762209167699,5.80265281,164.59,164.53,6.07791892]
[1762209168099,0.69,164.59,164.53,6.07791892]
[1762209168525,5.11265281,164.58,164.52,6.07820011]
[1762209168832,5.11265281,164.58,164.5,21.27608038]
[1762209168833,5.80265281,164.57,164.5,21.27608038]
[1762209169201,0.69,164.57,164.5,21.27608038]
[1762209170222,0.69,164.57,164.5,21.97608038]
[1762209170422,1.99999999,164.69,164.53,20.592]
[1762209170624,0.69,164.73,164.53,20.592]
[1762209170625,0.69,164.72,164.56,0.14216157]
[1762209171134,0.69,164.75,164.58,0.14216157]
[1762209171435,0.69,164.74,164.62,0.14216157]
[1762209171932,0.69,164.74,164.65,21.25721225]
[1762209172120,6.76019146,164.74,164.65,21.25721225]
[1762209172433,0.69,164.74,164.65,21.95721225]
[1762209172652,0.69,164.73,164.65,21.95721225]
[1762209173914,0.69,164.73,164.65,21.25721225]
[1762209174111,0.69,164.73,164.66,0.7]
[1762209174339,0.69,164.76,164.66,0.7]
[1762209174659,0.69,164.75,164.66,0.7]
[1762209174847,0.69,164.75,164.65,41.84921225]
[1762209174848,17.7037413,164.74,164.65,41.84921225]
[1762209175140,9.78882769,164.74,164.66,0.7]
[1762209175310,9.78882769,164.72,164.66,0.7]
[1762209175710,9.78882769,164.72,164.67,6.07275156]
[1762209175915,15.85973763,164.72,164.66,0.7]
[1762209176128,0.69,164.71,164.66,6.07310222]
[1762209177842,7.91491361,164.7,164.6,0.7]
[1762209178136,7.91491361,164.69,164.61,21.2622463]
[1762209178336,0.69,164.69,164.61,21.9622463]
[1762209178545,0.69,164.75,164.64,20.592]
[1762209178848,0.69,164.75,164.65,0.14216157]
[1762209179016,0.69,164.75,164.65,0.84216157]
[1762209179222,0.69,164.75,164.67,0.14216157]
[1762209179866,0.69,164.75,164.68,0.7]
[1762209180537,9.78882769,164.72,164.66,6.07312036]
[1762209181030,10.47882769,164.72,164.66,6.07312036]
[1762209181355,0.69,164.72,164.66,6.07312036]
[1762209181647,0.69,164.71,164.66,6.07312036]
[1762209182352,0.69,164.71,164.66,6.77312036]
[1762209182566,3.95692145,164.73,164.66,21.25592128]
[1762209182848,4.63692145,164.73,164.67,0.65]
[1762209183060,7.12136692,164.74,164.67,0.65]
[1762209183221,3.95692145,164.75,164.68,21.2533398]
[1762209183421,4.63692145,164.75,164.68,21.2533398]
[1762209183623,4.63692145,164.75,164.68,21.9033398]
[1762209183957,0.68,164.75,164.68,21.9033398]
[1762209184126,3.95692145,164.77,164.69,0.65]
[1762209184328,4.63692145,164.77,164.69,0.65]
[1762209184731,3.95692145,164.77,164.71,20.592]
[1762209185048,0.2,164.78,164.72,0.79216157]
[1762209185453,0.2,164.78,164.73,21.24688884]
[1762209185958,0.2,164.78,164.74,0.29216157]
[1762209186259,0.2,164.78,164.76,20.592]
[1762209186549,0.2,164.78,164.74,0.29216157]
[1762209186719,0.2,164.78,164.74,20.88416157]
[1762209187247,0.2,164.78,164.74,20.592]
[1762209187652,0.2,164.78,164.75,21.24430955]
[1762209188153,0.2,164.78,164.76,0.65]
[1762209189677,0.2,164.78,164.77,6.06906597]
[1762209190143,0.2,164.78,164.77,6.71906597]
[1762209190350,1e-08,164.78,164.77,27.45322754]
[1762209192025,1e-08,164.78,164.71,1.99999999]
[1762209192237,1e-08,164.78,164.73,0.65]
[1762209192740,8.59491361,164.77,164.7,6.07164541]
[1762209192953,0.68,164.77,164.7,21.90075894]
[1762209193129,0.68,164.77,164.7,21.25075894]
[1762209193327,0.68,164.77,164.71,0.65]
[1762209193758,1e-08,164.78,164.72,21.24817871]
[1762209194260,1e-08,164.78,164.72,21.89817871]
[1762209196557,1e-08,164.78,164.73,0.65]
[1762209196753,1e-08,164.78,164.74,0.14216157]
[1762209196959,1e-08,164.78,164.75,20.592]
[1762209197180,1e-08,164.78,164.76,0.14216157]
[1762209197350,1e-08,164.78,164.76,0.79216157]
[1762209198564,1e-08,164.78,164.77,6.06906597]
[1762209199051,1e-08,164.78,164.77,6.71906597]
[1762209199248,0.68000001,164.78,164.71,0.65]
[1762209199554,0.68000001,164.78,164.7,20.592]
[1762209199762,0.68000001,164.78,164.71,0.14216157]
[1762209199960,0.68000001,164.78,164.71,0.65]
[1762209200143,0.68000001,164.78,164.71,0.29216157]
[1762209200344,0.68000001,164.78,164.72,21.24817871]
[1762209200740,0.68000001,164.78,164.72,41.84017871]
[1762209200941,1e-08,164.78,164.73,0.14216157]
[1762209202162,1e-08,164.78,164.73,0.79216157]
[1762209202371,1e-08,164.78,164.75,0.14216157]
[1762209204173,1e-08,164.78,164.74,21.24559911]
[1762209204960,0.68000001,164.78,164.74,21.24559911]
[1762209205444,1e-08,164.78,164.74,21.24559911]
[1762209206458,1e-08,164.78,164.75,0.65]
[1762209207165,1e-08,164.78,164.75,0.79216157]
[1762209208483,1e-08,164.78,164.77,0.14216157]
[1762209210492,1e-08,164.78,164.77,26.80322754]
[1762209211305,1e-08,164.78,164.77,27.47322754]
[1762209212993,1e-08,164.78,164.77,26.80322754]
[1762209214376,1e-08,164.78,164.77,6.06906597]
[1762209214578,1e-08,164.78,164.76,6.069327]
[1762209215973,1e-08,164.78,164.77,0.81216157]
[1762209216185,1e-08,164.78,164.77,6.21122754]
[1762209218294,1e-08,164.78,164.77,6.88122754]
[1762209219293,1e-08,164.78,164.77,6.06906597]
[1762209220066,1e-08,164.78,164.75,36.57798206]
[1762209220270,1e-08,164.78,164.76,6.06943432]
[1762209224399,1e-08,164.78,164.77,0.67]
[1762209224578,1e-08,164.78,164.77,0.81216157]
[1762209226186,1e-08,164.78,164.77,6.88122754]
[1762209226596,1e-08,164.78,164.77,27.47322754]
[1762209228404,1e-08,164.78,164.77,26.80322754]
[1762209228904,1e-08,164.78,164.77,26.66106597]
[1762209229202,1e-08,164.78,164.77,26.80322754]
[1762209230702,1e-08,164.78,164.75,21.24362322]
[1762209231004,1e-08,164.78,164.76,0.14216157]
[1762209231690,1e-08,164.78,164.76,0.81216157]
[1762209232909,1e-08,164.78,164.77,6.21122754]
[1762209234590,0.70000001,164.78,164.75,20.592]
[1762209234791,0.70000001,164.78,164.74,15.17542794]
[1762209235185,0.70000001,164.78,164.73,6.07053967]
[1762209236430,0.70000001,164.78,164.7,21.25075894]
[1762209236596,5.81354578,164.78,164.72,0.14216157]
[1762209236795,5.81354578,164.78,164.7,21.25075894]
[1762209237010,0.7,164.77,164.7,41.84275894]
[1762209237214,0.7,164.77,164.71,0.14216157]
[1762209238719,0.7,164.77,164.72,21.24817871]
[1762209239830,5.11354577,164.73,164.62,50.0]
[1762209239989,5.11354577,164.73,164.58,30.37922236]
[1762209239990,5.11354577,164.69,164.63,6.07391738]
[1762209240296,5.11354577,164.68,164.61,6.07496506]
[1762209240694,0.7,164.67,164.61,6.07496506]
[1762209241221,9.12478445,164.66,164.61,6.07496506]
[1762209241388,5.81354577,164.67,164.6,20.592]
[1762209241715,5.11354577,164.64,164.58,0.7]
[1762209241894,0.7,164.63,164.59,6.07570326]
[1762209242512,15.17821721,164.71,164.6,0.72]
[1762209242821,0.69,164.7,164.61,0.14216157]
[1762209243196,0.69,164.7,164.63,0.14216157]
[1762209243820,4.68903855,164.73,164.66,21.25592128]
[1762209243996,0.69,164.73,164.67,0.14216157]
[1762209244190,0.69,164.73,164.69,20.592]
[1762209244394,0.69,164.73,164.7,0.14216157]
[1762209244615,3.99903856,164.78,164.7,0.14216157]
[1762209244791,0.69,164.75,164.7,0.14216157]
[1762209245209,0.69,164.75,164.71,0.72]
[1762209245407,0.69000001,164.78,164.72,0.14216157]
[1762209245811,0.69000001,164.78,164.73,21.24688884]
[1762209246200,0.69000001,164.78,164.74,0.72]
[1762209246522,0.69000001,164.78,164.74,0.14216157]